fUSD/lending_fUSD_20251206
["ID","MTS","AMOUNT","RATE_DAILY","PERIOD"]
[396507371,1765017040785,-5849.36,0.00015817,2]
[396507372,1765017040795,-9999.99,0.00015817,2]
[396507373,1765017040805,-299.99,0.00015817,2]
[396507374,1765017040814,-166.66,0.00015856,2]
[396507375,1765017040824,-1460.07,0.00015899,2]
[396507376,1765017040833,-8770.88430806,0.000159,2]
[396507377,1765017040842,-262.0,0.00015911,2]
[396507378,1765017040851,-592.43343954,0.00015916,2]
[396507379,1765017040860,-19411.03,0.00015929,2]
[396507380,1765017040870,-19871.0,0.00015945,2]
[396507381,1765017040878,-152.87,0.00015971,2]
[396507382,1765017040887,-150.0,0.00015984,2]
[396507383,1765017040900,-150.0,0.00015985,2]
[396507384,1765017040910,-1214.43039997,0.0001599,2]
[396507385,1765017040920,-151.0,0.00015997,2]
[396507386,1765017040929,-1167290.60662346,0.00016,4]
[396507387,1765017040940,-749.0,0.00016016,2]
[396507388,1765017040949,-508.0,0.0001602,2]
[396507389,1765017040959,-9889.97,0.00016042,2]
[396507390,1765017040968,-303.0,0.0001613,2]
[396507391,1765017040978,-420.0,0.0001613,2]
[396507392,1765017040987,-6441.58395172,0.00016142,2]
[396507393,1765017040997,-12726.07,0.00016148,2]
[396507394,1765017041007,-250.0,0.00016181,2]
[396507395,1765017041016,-166.66,0.00016183,2]
[396507396,1765017041026,-150.0,0.000162,2]
[396507397,1765017041035,-150.0,0.000162,2]
[396507398,1765017041044,-150.0,0.000162,2]
[396507399,1765017041054,-150.0,0.000162,2]
[396507400,1765017041063,-150.0,0.000162,2]
[396507401,1765017041072,-150.0,0.000162,2]
[396507402,1765017041081,-150.0,0.000162,2]
[396507403,1765017041094,-150.0,0.000162,2]
[396507404,1765017041103,-150.0,0.000162,2]
[396507405,1765017041113,-150.0,0.000162,2]
[396507406,1765017041122,-150.0,0.000162,2]
[396507407,1765017041132,-150.0,0.000162,2]
[396507408,1765017041141,-5276.56184379,0.000162,5]
[396507409,1765017041151,-1680.0,0.00016208,2]
[396507410,1765017041160,-300.0,0.00016209,2]
[396507411,1765017041170,-289.8175195,0.00016209,2]
[396507412,1765017041179,-300.0,0.00016209,2]
[396507413,1765017041188,-195.0,0.00016209,2]
[396507414,1765017041197,-300.0,0.00016209,2]
[396507415,1765017041208,-193.0,0.00016209,2]
[396507416,1765017041218,-300.0,0.00016209,2]
[396507417,1765017041228,-195.0,0.00016209,2]
[396507418,1765017041237,-1000.0,0.00016223,2]
[396507419,1765017041246,-150.0,0.0001629,2]
[396507420,1765017041256,-150.0,0.00016306,2]
[396507421,1765017041268,-250.0,0.00016319,2]
[396507422,1765017041277,-150.0,0.0001632,2]
[396507423,1765017041286,-150.0,0.0001638,2]
[396507424,1765017041295,-150.0,0.000164,2]
[396507425,1765017041308,-201.0,0.000164,2]
[396507426,1765017041317,-282.0,0.000164,2]
[396507427,1765017041327,-161.0,0.000164,2]
[396507428,1765017041336,-162.42091449,0.000164,2]
[396507429,1765017041345,-150.0,0.00016412,2]
[396507430,1765017041355,-150.0,0.00016425,2]
[396507431,1765017041364,-150.0,0.00016425,2]
[396507432,1765017041373,-1600.0,0.00016431,2]
[396507433,1765017041383,-500.0,0.00016438,2]
[396507434,1765017041392,-500.0,0.00016438,2]
[396507435,1765017041402,-500.0,0.00016438,2]
[396507436,1765017041412,-500.0,0.00016438,2]
[396507437,1765017041421,-500.0,0.00016438,2]
[396507438,1765017041431,-500.0,0.00016438,2]
[396507439,1765017041440,-500.0,0.00016438,2]
[396507440,1765017041449,-500.0,0.00016438,2]
[396507441,1765017041458,-500.0,0.00016438,2]
[396507442,1765017041467,-233.31075376,0.00016438,2]
[396507443,1765017041476,-24994.38,0.00016438,2]
[396507444,1765017041485,-150.0,0.0001644,2]
[396507445,1765017041499,-150.0,0.00016457,2]
[396507446,1765017041508,-150.0,0.0001647,2]
[396507447,1765017041519,-154.61945698,0.0001649,2]
[396507448,1765017041529,-500.0,0.00016493,2]
[396507449,1765017041538,-6441.58395172,0.00016493,2]
[396507450,1765017041547,-311.1,0.00016496,2]
[396507451,1765017041558,-287.61899177,0.00016496,2]
[396507452,1765017041567,-166.66,0.0001651,2]
[396507453,1765017041577,-150.0,0.00016518,2]
[396507454,1765017041586,-255.991,0.00016526,2]
[396507455,1765017041595,-3446.0,0.00016526,2]
[396507456,1765017041604,-611.0,0.00016526,2]
[396507457,1765017041613,-150.0,0.0001656,2]
[396507458,1765017041622,-150.0,0.0001656,2]
[396507459,1765017041631,-150.0,0.000166,2]
[396507460,1765017041640,-150.0,0.00016624,2]
[396507461,1765017041649,-150.0,0.0001665,2]
[396507462,1765017041659,-150.0,0.0001665,2]
[396507463,1765017041668,-150.0,0.0001665,2]
[396507464,1765017041677,-150.0,0.0001665,2]
[396507465,1765017041686,-150.0,0.0001668,2]
[396507466,1765017041698,-801.68444085,0.000167,2]
[396507467,1765017041709,-500.0,0.00016713,2]
[396507468,1765017041718,-150.0,0.00016714,2]
[396507469,1765017041729,-150.0,0.00016729,2]
[396507470,1765017041738,-150.0,0.0001674,2]
[396507471,1765017041751,-1000.0,0.00016771,2]
[396507472,1765017041760,-153.33190664,0.00016773,2]
[396507473,1765017041769,-306.50805595,0.00016773,2]
[396507474,1765017041778,-500.0,0.00016773,2]
[396507475,1765017041787,-500.0,0.00016773,2]
[396507476,1765017041796,-500.0,0.00016773,2]
[396507477,1765017041806,-500.0,0.00016773,2]
[396507478,1765017041816,-500.0,0.00016773,2]
[396507479,1765017041826,-500.0,0.00016773,2]
[396507480,1765017041836,-500.0,0.00016773,2]
[396507481,1765017041846,-524.99444915,0.00016773,2]
[396507482,1765017041855,-500.0,0.00016773,2]
[396507483,1765017041864,-500.0,0.00016773,2]
[396507484,1765017041873,-500.0,0.00016773,2]
[396507485,1765017041882,-647.71403907,0.00016773,2]
[396507486,1765017041892,-500.0,0.00016773,2]
[396507487,1765017041901,-500.0,0.00016773,2]
[396507488,1765017041910,-500.0,0.00016773,2]
[396507489,1765017041920,-500.0,0.00016773,2]
[396507490,1765017041929,-500.0,0.00016773,2]
[396507491,1765017041938,-500.0,0.00016773,2]
[396507492,1765017041948,-500.0,0.00016773,2]
[396507493,1765017041957,-500.0,0.00016795,2]
[396507494,1765017041966,-150.0,0.000168,2]
[396507495,1765017041975,-150.0,0.000168,2]
[396507496,1765017041984,-150.0,0.0001683,2]
[396507497,1765017041993,-150.0,0.00016835,2]
[396507498,1765017042003,-166.66,0.00016837,2]
[396507499,1765017042012,-6441.58395172,0.00016845,2]
[396507500,1765017042022,-1261.073,0.00016852,2]
[396507501,1765017042031,-614.0,0.00016852,2]
[396507502,1765017042041,-1197.268,0.00016852,2]
[396507503,1765017042050,-910.0,0.00016852,2]
[396507504,1765017042059,-150.0,0.00016875,2]
[396507505,1765017042069,-150.0,0.00016875,2]
[396507506,1765017042078,-180.0,0.00016886,2]
[396507507,1765017042098,-2534.94863569,0.000169,2]
[396507509,1765017042107,-1297.46882781,0.000169,2]
[396507510,1765017042117,-782.10324243,0.00016907,2]
[396507511,1765017042127,-150.0,0.0001692,2]
[396507512,1765017042136,-150.0,0.0001692,2]
[396507513,1765017042145,-150.0,0.00016941,2]
[396507514,1765017042155,-150.0,0.00016971,2]
[396507515,1765017042164,-500.0,0.00016977,2]
[396507516,1765017042174,-150.0,0.00016977,2]
[396507517,1765017042183,-500.0,0.00016977,2]
[396507518,1765017042192,-150.0,0.00016977,2]
[396507519,1765017042202,-150.0,0.00016977,2]
[396507520,1765017042211,-150.0,0.00016977,2]
[396507521,1765017042221,-200.0,0.00016977,2]
[396507522,1765017042232,-150.0,0.00016977,2]
[396507523,1765017042241,-150.0,0.00016977,2]
[396507524,1765017042251,-500.0,0.00016977,2]
[396507525,1765017042264,-500.0,0.00016977,2]
[396507526,1765017042273,-151.77141743,0.00016977,2]
[396507527,1765017042283,-205.57,0.00016978,2]
[396507528,1765017042293,-518.5,0.00016986,2]
[396507529,1765017042303,-1214.43039997,0.0001699,2]
[396507530,1765017042312,-1214.43039997,0.0001699,2]
[396507531,1765017042321,-2751.0,0.00016996,2]
[396507532,1765017042331,-300.0,0.00016999,2]
[396507533,1765017042341,-1989.0,0.00017,2]
[396507534,1765017042351,-150.0,0.00017,2]
[396507535,1765017042361,-150.0,0.00017,2]
[396507536,1765017042372,-1954.94611568,0.00017,2]
[396507537,1765017042382,-2000.0,0.00017,2]
[396507538,1765017042393,-3803430.18224696,0.00017,2]
[396507539,1765017042404,-151.0,0.00017,2]
[396507540,1765017042414,-151.0,0.00017,2]
[396507541,1765017042424,-153.365488,0.00017,2]
[396507542,1765017042434,-152.035684,0.00017,2]
[396507543,1765017042445,-400.17609275,0.00017,2]
[396507544,1765017042455,-180.0,0.00017007,2]
[396507545,1765017042468,-150.0,0.0001701,2]
[396507546,1765017042479,-477.48,0.00017024,2]
[396507547,1765017042488,-250.0,0.0001704,2]
[396507548,1765017042498,-150.0,0.0001704,2]
[396507549,1765017042508,-150.0,0.00017047,2]
[396507550,1765017042518,-150.0,0.000171,2]
[396507551,1765017042528,-150.0,0.000171,2]
[396507552,1765017042538,-150.0,0.000171,2]
[396507553,1765017042550,-150.0,0.000171,2]
[396507554,1765017042565,-150.0,0.000171,2]
[396507555,1765017042575,-150.0,0.000171,2]
[396507556,1765017042585,-1297.46882776,0.000171,2]
[396507557,1765017042595,-500.0,0.00017114,2]
[396507558,1765017042604,-156.59661348,0.00017114,2]
[396507559,1765017042615,-500.0,0.00017114,2]
[396507560,1765017042627,-165.48686071,0.00017114,2]
[396507561,1765017042638,-150.0,0.00017114,2]
[396507562,1765017042648,-150.0,0.00017114,2]
[396507563,1765017042658,-500.0,0.00017114,2]
[396507564,1765017042668,-500.0,0.00017114,2]
[396507565,1765017042677,-180.0,0.00017124,2]
[396507566,1765017042687,-180.0,0.00017141,2]
[396507567,1765017042697,-150.0,0.00017153,2]
[396507568,1765017042706,-150.0,0.0001716,2]
[396507569,1765017042716,-166.66,0.00017164,2]
[396507570,1765017042726,-150.0,0.0001719,2]
[396507571,1765017042737,-6441.58395172,0.00017197,2]
[396507572,1765017042749,-150.0,0.000172,2]
[396507573,1765017042758,-219.37,0.00017227,2]
[396507574,1765017042767,-150.0,0.00017229,2]
[396507575,1765017042776,-500.0,0.00017251,2]
[396507576,1765017042786,-500.0,0.00017251,2]
[396507577,1765017042795,-150.0,0.00017251,2]
[396507578,1765017042808,-203.7450711,0.00017251,2]
[396507579,1765017042818,-500.0,0.00017251,2]
[396507580,1765017042828,-500.0,0.00017251,2]
[396507581,1765017042837,-150.0,0.00017259,2]
[396507582,1765017042846,-150.0,0.0001728,2]
[396507583,1765017042855,-150.0,0.0001728,2]
[396507584,1765017042864,-1297.46882776,0.000173,2]
[396507585,1765017042874,-180.0,0.00017314,2]
[396507586,1765017042883,-1000.0,0.00017319,2]
[396507587,1765017042892,-916.18647258,0.00017321,2]
[396507588,1765017042902,-497.09,0.00017321,2]
[396507589,1765017042911,-424.68101404,0.00017321,2]
[396507590,1765017042921,-500.0,0.00017321,2]
[396507591,1765017042930,-1000.0,0.00017321,2]
[396507592,1765017042940,-1000.0,0.00017321,2]
[396507593,1765017042949,-1000.0,0.00017321,2]
[396507594,1765017042959,-1000.0,0.00017321,2]
[396507595,1765017042968,-1000.0,0.00017321,2]
[396507596,1765017042978,-872.42050696,0.00017321,2]
[396507597,1765017042987,-620.9594615,0.00017321,2]
[396507598,1765017042997,-1000.0,0.00017321,2]
[396507599,1765017043007,-1000.0,0.00017321,2]
[396507600,1765017043016,-1000.0,0.00017321,2]
[396507601,1765017043026,-1000.0,0.00017321,2]
[396507602,1765017043035,-150.0,0.00017325,2]
[396507603,1765017043045,-150.0,0.00017325,2]
[396507604,1765017043055,-150.0,0.00017365,2]
[396507605,1765017043064,-150.0,0.0001737,2]
[396507606,1765017043074,-500.0,0.00017388,2]
[396507607,1765017043083,-500.0,0.00017388,2]
[396507608,1765017043093,-150.0,0.00017388,2]
[396507610,1765017043102,-500.0,0.00017388,2]
[396507611,1765017043112,-500.0,0.00017388,2]
[396507612,1765017043122,-150.0,0.000174,2]
[396507613,1765017043131,-150.0,0.000174,2]
[396507614,1765017043140,-180.0,0.00017446,2]
[396507615,1765017043150,-180.0,0.00017458,2]
[396507616,1765017043160,-150.0,0.0001746,2]
[396507617,1765017043170,-150.0,0.00017471,2]
[396507618,1765017043179,-150.0,0.00017486,2]
[396507619,1765017043188,-219.37,0.00017493,2]
[396507620,1765017043197,-1297.46882776,0.000175,2]
[396507621,1765017043206,-150.0,0.0001752,2]
[396507622,1765017043216,-500.0,0.00017525,2]
[396507623,1765017043225,-500.0,0.00017525,2]
[396507624,1765017043234,-250.0,0.00017525,2]
[396507625,1765017043243,-500.0,0.00017525,2]
[396507626,1765017043256,-510.79311064,0.00017525,2]
[396507628,1765017043265,-205.56147244,0.00017526,2]
[396507629,1765017043274,-180.0,0.00017529,2]
[396507630,1765017043284,-500.0,0.00017534,2]
[396507631,1765017043293,-6441.58395172,0.00017548,2]
[396507632,1765017043302,-150.0,0.0001755,2]
[396507633,1765017043311,-150.0,0.0001755,2]
[396507634,1765017043320,-150.0,0.0001755,2]
[396507635,1765017043329,-150.0,0.0001755,2]
[396507636,1765017043338,-1566.91358849,0.00017557,2]
[396507637,1765017043347,-150.0,0.00017576,2]
[396507638,1765017043357,-180.0,0.00017579,2]
[396507639,1765017043366,-180.0,0.00017581,2]
[396507640,1765017043376,-477.48,0.0001759,2]
[396507641,1765017043387,-150.0,0.000176,2]
[396507642,1765017043396,-150.0,0.0001764,2]
[396507643,1765017043407,-150.0,0.0001764,2]
[396507644,1765017043416,-4676.57247342,0.0001764,2]
[396507645,1765017043700,-300.0,0.00017658,2]
[396507646,1765017043710,-500.0,0.00017662,2]
[396507647,1765017043720,-500.0,0.00017662,2]
[396507648,1765017043730,-500.0,0.00017662,2]
[396507649,1765017043739,-150.0,0.00017682,2]
[396507650,1765017043750,-1000.0,0.00017688,2]
[396507651,1765017043762,-302.91790841,0.00017691,2]
[396507652,1765017043773,-1000.0,0.00017695,2]
[396507653,1765017043787,-1297.46882776,0.000177,2]
[396507654,1765017043796,-180.0,0.00017711,2]
[396507655,1765017043805,-1000.0,0.00017715,2]
[396507656,1765017043814,-150.0,0.0001773,2]
[396507657,1765017043823,-150.0,0.00017743,2]
[396507658,1765017043832,-180.0,0.00017754,2]
[396507659,1765017043842,-150.0,0.0001776,2]
[396507660,1765017043851,-1000.0,0.00017761,3]
[396507661,1765017043860,-1000.0,0.0001777,2]
[396507662,1765017043869,-1000.0,0.00017771,2]
[396507663,1765017043878,-150.0,0.00017775,2]
[396507664,1765017043887,-150.0,0.00017775,2]
[396507665,1765017043898,-1849.93259883,0.00017785,2]
[396507666,1765017043907,-1000.0,0.00017788,2]
[396507667,1765017043917,-1000.0,0.00017788,2]
[396507668,1765017043927,-150.0,0.00017788,2]
[396507669,1765017043936,-1000.0,0.00017796,2]
[396507670,1765017043945,-500.0,0.00017799,2]
[396507671,1765017043954,-500.0,0.00017799,2]
[396507672,1765017043965,-500.0,0.00017799,2]
[396507673,1765017043975,-500.0,0.000178,2]
[396507674,1765017043984,-150.0,0.000178,2]
[396507675,1765017043993,-1000.0,0.00017803,2]
[396507676,1765017044003,-150.0,0.0001782,2]
[396507677,1765017044012,-7000.0,0.0001782,2]
[396507678,1765017044022,-1000.0,0.00017823,2]
[396507679,1765017044031,-2351.0,0.00017829,2]
[396507680,1765017044041,-9131.82601544,0.0001783,2]
[396507681,1765017044050,-1000.0,0.0001784,2]
[396507682,1765017044060,-323.4472959,0.00017865,2]
[396507683,1765017044069,-439.38455479,0.00017865,2]
[396507684,1765017044080,-1500.0,0.00017868,2]
[396507685,1765017044090,-1500.0,0.00017868,2]
[396507686,1765017044100,-1500.0,0.00017868,2]
[396507687,1765017044109,-1361.67702976,0.00017868,2]
[396507688,1765017044119,-1500.0,0.00017868,2]
[396507689,1765017044129,-1500.0,0.00017868,2]
[396507690,1765017044138,-1001.3753552,0.00017868,2]
[396507691,1765017044148,-597.29960805,0.00017868,2]
[396507692,1765017044158,-4795.8497,0.00017873,2]
[396507693,1765017044168,-150.0,0.0001788,2]
[396507694,1765017044177,-1000.0,0.00017886,2]
[396507695,1765017044187,-18630.36810048,0.00017889,2]
[396507696,1765017044197,-150.0,0.00017894,2]
[396507697,1765017044207,-1000.0,0.00017899,3]
[396507698,1765017044216,-10000.0,0.000179,2]
[396507699,1765017044228,-762.292584,0.000179,2]
[396507700,1765017044238,-300.95299336,0.000179,2]
[396507701,1765017044247,-6441.58395172,0.000179,2]
[396507702,1765017044260,-1297.46882776,0.000179,2]
[396507703,1765017044270,-1000.0,0.00017901,2]
[396507704,1765017044280,-150.0,0.0001791,2]
[396507705,1765017044289,-1076.7755255,0.00017916,2]
[396507706,1765017044299,-7000.0,0.0001793,2]
[396507707,1765017044309,-1000.0,0.0001793,2]
[396507708,1765017044318,-500.0,0.00017936,2]
[396507709,1765017044327,-500.0,0.00017936,2]
[396507710,1765017044338,-500.0,0.00017936,2]
[396507711,1765017044348,-428.51941916,0.00017939,2]
[396507712,1765017044358,-180.0,0.00017951,2]
[396507713,1765017044368,-1172.54784991,0.00017954,2]
[396507714,1765017044377,-500.0,0.00017973,2]
[396507715,1765017044387,-500.0,0.00017973,2]
[396507716,1765017044396,-500.1448245,0.00017973,2]
[396507717,1765017044406,-500.1243461,0.00017973,2]
[396507718,1765017044415,-500.0,0.00017973,2]
[396507719,1765017044425,-161.67461867,0.00017973,2]
[396507720,1765017044435,-500.27836913,0.00017973,2]
[396507721,1765017044444,-500.0,0.00017973,2]
[396507722,1765017044454,-500.14207966,0.00017973,2]
[396507723,1765017044463,-500.0,0.00017973,2]
[396507724,1765017044472,-162.00374227,0.00017973,2]
[396507725,1765017044482,-150.0,0.00017973,2]
[396507726,1765017044491,-500.0,0.00017973,2]
[396507727,1765017044502,-500.11588328,0.00017973,2]
[396507728,1765017044513,-500.0,0.00017973,2]
[396507729,1765017044525,-500.0,0.00017973,2]
[396507730,1765017044541,-500.0,0.00017973,2]
[396507731,1765017044560,-500.0,0.00017973,2]
[396507732,1765017044579,-500.0,0.00017973,2]
[396507733,1765017044592,-160.21168821,0.00017973,2]
[396507734,1765017044602,-500.0,0.00017973,2]
[396507735,1765017044611,-500.0,0.00017973,2]
[396507736,1765017044621,-500.0,0.00017973,2]
[396507737,1765017044631,-160.20966807,0.00017973,2]
[396507738,1765017044640,-500.0,0.00017973,2]
[396507739,1765017044649,-160.24573342,0.00017973,2]
[396507740,1765017044658,-160.20296262,0.00017973,2]
[396507741,1765017044668,-500.0,0.00017973,2]
[396507742,1765017044677,-160.2084447,0.00017973,2]
[396507743,1765017044688,-500.06751975,0.00017973,2]
[396507744,1765017044698,-160.19575526,0.00017973,2]
[396507745,1765017044707,-500.16437738,0.00017973,2]
[396507746,1765017044716,-500.0,0.00017973,2]
[396507747,1765017044725,-156.18843256,0.00017973,2]
[396507748,1765017044734,-500.0,0.00017973,2]
[396507749,1765017044744,-500.77083198,0.00017973,2]
[396507750,1765017044753,-500.0,0.00017973,2]
[396507751,1765017044763,-500.0,0.00017973,2]
[396507752,1765017044772,-500.0,0.00017973,2]
[396507753,1765017044781,-500.0,0.00017973,2]
[396507754,1765017044790,-500.07540249,0.00017973,2]
[396507755,1765017044799,-500.12093731,0.00017973,2]
[396507756,1765017044809,-500.05902909,0.00017973,2]
[396507757,1765017044818,-500.11129889,0.00017973,2]
[396507758,1765017044828,-160.21322409,0.00017973,2]
[396507759,1765017044838,-200.21803565,0.00017973,2]
[396507760,1765017044847,-508.31464132,0.00017973,2]
[396507761,1765017044856,-517.60268897,0.00017973,2]
[396507762,1765017044866,-500.15286288,0.00017973,2]
[396507763,1765017044875,-500.0,0.00017973,2]
[396507764,1765017044885,-206.14819369,0.00017973,2]
[396507765,1765017044895,-554.64439175,0.00017973,2]
[396507766,1765017044904,-329.95025726,0.00017973,2]
[396507767,1765017044915,-333.79268519,0.00017973,2]
[396507768,1765017044924,-500.0,0.00017973,2]
[396507769,1765017044934,-160.20100282,0.00017973,2]
[396507770,1765017044943,-160.20428879,0.00017973,2]
[396507771,1765017044952,-500.15316255,0.00017973,2]
[396507772,1765017044962,-160.19917494,0.00017973,2]
[396507773,1765017044971,-500.05141337,0.00017973,2]
[396507774,1765017044980,-160.1949285,0.00017973,2]
[396507775,1765017044989,-200.17966938,0.00017973,2]
[396507776,1765017044999,-160.21076448,0.00017973,2]
[396507777,1765017045009,-163.36237473,0.00017973,2]
[396507778,1765017045018,-500.08341948,0.00017973,2]
[396507779,1765017045028,-500.0,0.00017973,2]
[396507780,1765017045039,-467.58168915,0.00017973,2]
[396507781,1765017045048,-164.45914382,0.00017973,2]
[396507782,1765017045057,-500.0,0.00017973,2]
[396507783,1765017045066,-500.12019196,0.00017973,2]
[396507784,1765017045075,-343.90657031,0.00017973,2]
[396507785,1765017045084,-505.085201,0.00017973,2]
[396507786,1765017045094,-168.19239076,0.00017973,2]
[396507787,1765017045103,-500.0,0.00017973,2]
[396507788,1765017045112,-500.0,0.00017973,2]
[396507789,1765017045122,-160.72032991,0.00017973,2]
[396507790,1765017045132,-500.15304176,0.00017973,2]
[396507791,1765017045141,-500.21137091,0.00017973,2]
[396507792,1765017045151,-500.0,0.00017973,2]
[396507793,1765017045160,-500.0,0.00017973,2]
[396507794,1765017045169,-500.0,0.00017973,2]
[396507795,1765017045179,-500.0,0.00017973,2]
[396507796,1765017045188,-500.0,0.00017973,2]
[396507797,1765017045198,-500.08973477,0.00017973,2]
[396507798,1765017045207,-500.0,0.00017973,2]
[396507799,1765017045216,-500.0,0.00017973,2]
[396507800,1765017045226,-500.0,0.00017973,2]
[396507801,1765017045236,-500.11149351,0.00017973,2]
[396507802,1765017045245,-160.19463102,0.00017973,2]
[396507803,1765017045256,-311.98554059,0.00017973,2]
[396507804,1765017045266,-587.57634903,0.00017973,2]
[396507805,1765017045275,-159.10862324,0.00017973,2]
[396507806,1765017045284,-500.0,0.00017973,2]
[396507807,1765017045294,-500.0,0.00017973,2]
[396507808,1765017045304,-281.95977781,0.00017973,2]
[396507809,1765017045313,-500.0,0.00017973,2]
[396507810,1765017045323,-219.77568388,0.00017973,2]
[396507811,1765017045332,-482.01811225,0.00017973,2]
[396507812,1765017045342,-500.0,0.00017973,2]
[396507813,1765017045351,-500.0,0.00017973,2]
[396507814,1765017045360,-166.53912604,0.00017973,2]
[396507815,1765017045370,-161.25523384,0.00017973,2]
[396507816,1765017045379,-373.54709993,0.00017973,2]
[396507817,1765017045389,-500.0,0.00017973,2]
[396507818,1765017045398,-306.35770823,0.00017973,2]
[396507819,1765017045407,-500.12306727,0.00017973,2]
[396507820,1765017045416,-500.0,0.00017973,2]
[396507821,1765017045426,-508.01274209,0.00017973,2]
[396507822,1765017045435,-500.0,0.00017973,2]
[396507823,1765017045444,-500.0,0.00017973,2]
[396507824,1765017045453,-500.0,0.00017973,2]
[396507825,1765017045462,-500.0,0.00017973,2]
[396507826,1765017045471,-639.15,0.00017973,2]
[396507827,1765017045480,-183.43,0.00017986,2]
[396507828,1765017045489,-1000.0,0.00017999,2]
[396507829,1765017045498,-342.01626432,0.00017999,2]
[396507830,1765017045507,-153.94576401,0.00018,2]
[396507831,1765017045517,-164.22859422,0.00018,2]
[396507832,1765017045526,-155.57891233,0.00018,2]
[396507833,1765017045535,-196.5715657,0.00018,2]
[396507834,1765017045544,-150.0,0.00018,2]
[396507835,1765017045552,-150.0,0.00018,2]
[396507836,1765017045562,-150.0,0.00018,2]
[396507837,1765017045572,-150.0,0.00018,2]
[396507838,1765017045581,-150.0,0.00018,2]
[396507839,1765017045590,-156.13124317,0.00018,2]
[396507840,1765017045599,-150.0,0.00018,2]
[396507841,1765017045608,-150.0,0.00018,2]
[396507842,1765017045617,-212457.88728309,0.00018,2]
[396507844,1765017045627,-6121.89672631,0.00018,2]
[396507846,1765017045635,-297133.78084583,0.00018,2]
[396507847,1765017045645,-119582.75849797,0.00018,2]
[396507848,1765017045653,-359507.76167613,0.00018,2]
[396507849,1765017045679,-12541.95024179,0.00018,2]
[396507850,1765017045707,-13365.42815252,0.00018,2]
[396507861,1765017047242,-394.04492299,0.00016049,2]
[396507862,1765017047254,-3410.597,0.00016526,2]
[396507863,1765017047265,-105004.01216595,0.00018,2]
[396507864,1765017047281,-1018.67375131,0.00018,2]
[396507865,1765017089058,500.0,0.00014835,2]
[396507866,1765017089925,9500.01,0.00014735,2]
[396507867,1765017089952,10000.01,0.00014735,2]
[396507868,1765017089978,10000.01,0.00014735,2]
[396507869,1765017090005,10000.01,0.00014735,2]
[396507870,1765017090041,10000.01,0.00014735,2]
[396507871,1765017090073,10000.01,0.00014735,2]
[396507872,1765017090101,10000.01,0.00014735,2]
[396507873,1765017090128,10000.01,0.00014735,2]
[396507874,1765017090154,10000.01,0.00014735,2]
[396507875,1765017090181,10000.01,0.00014735,2]
[396507876,1765017091069,-570.26451729,0.00014735,2]
[396507877,1765017093913,-227.53282621,0.00014735,2]
[396507878,1765017097157,-179.25317493,0.00014735,2]
[396507879,1765017098635,-170.18707895,0.00014735,2]
[396507880,1765017103926,-9312.7839294,0.00014735,2]
[396507881,1765017104075,-10000.01,0.00014735,2]
[396507882,1765017104162,-10000.01,0.00014735,2]
[396507883,1765017104286,-10000.01,0.00014735,2]
[396507884,1765017104413,-10000.01,0.00014735,2]
[396507885,1765017104549,-10000.01,0.00014735,2]